bitfinex/quotes_SOLUSD_20250506
["timestamp","ask_amount","ask_price","bid_price","bid_amount"]
[1746558258918,31.95074403,145.13,145.09,6.89227376]
[1746558259262,31.95074403,145.1,145.09,6.89227376]
[1746558259925,31.95074403,145.1,145.06,6.89369915]
[1746558260239,31.95074403,145.07,145.06,6.89369915]
[1746558260541,26.0,145.13,145.06,24.12794704]
[1746558260720,31.95074403,145.1,145.06,24.12794704]
[1746558260916,31.95074403,145.11,145.07,31.95074403]
[1746558261321,31.95074403,145.11,145.06,58.59644283]
[1746558261524,26.0,145.15,145.07,31.95074403]
[1746558262322,31.95074403,145.12,145.08,31.95074403]
[1746558262644,31.95074403,145.11,145.07,31.95074403]
[1746558263141,26.0,145.15,145.08,24.12462089]
[1746558263349,26.0,145.15,145.08,56.07536492]
[1746558263642,31.95074403,145.13,145.08,58.58836503]
[1746558263843,31.95074403,145.13,145.09,31.95074403]
[1746558264031,31.95074403,145.13,145.1,21.06]
[1746558264542,31.95074403,145.12,145.1,21.06]
[1746558265043,31.95074403,145.12,145.11,6.89132382]
[1746558265641,26.0,145.15,145.11,6.89132382]
[1746558265944,31.95074403,145.12,145.11,6.89132382]
[1746558266243,26.0,145.15,145.11,6.89132382]
[1746558266551,31.95074403,145.12,145.11,6.89132382]
[1746558266733,31.95074403,145.13,145.11,6.89132382]
[1746558267250,31.95074403,145.12,145.11,6.89132382]
[1746558268144,63.90148806,145.12,145.08,6.89274882]
[1746558268343,31.95074403,145.09,145.08,6.89274882]
[1746558269037,31.95074403,145.09,145.07,6.89322396]
[1746558269344,31.95074403,145.08,145.07,6.89322396]
[1746558269551,31.95074403,145.09,145.07,6.89322396]
[1746558270229,31.95074403,145.08,145.07,6.89322396]
[1746558271548,63.42371151,145.12,145.07,6.89322396]
[1746558271756,31.95074403,145.08,145.07,6.89322396]
[1746558272129,31.95074403,145.08,145.05,24.12952384]
[1746558272326,63.42371151,145.11,145.05,24.12952384]
[1746558272545,63.42371151,145.1,145.05,56.08026787]
[1746558272747,63.42371151,145.13,145.06,31.95074403]
[1746558272938,31.95074403,145.11,145.07,31.95074403]
[1746558273146,31.95074403,145.1,145.05,56.08026787]
[1746558273327,31.95074403,145.08,145.05,24.12952384]
[1746558273531,31.95074403,145.07,145.05,45.30952384]
[1746558273731,63.42371151,145.1,145.05,77.26026787]
[1746558273950,31.95074403,145.09,145.05,77.26026787]
[1746558274655,31.95074403,145.08,145.05,45.30952384]
[1746558275247,31.95074403,145.07,145.05,45.30952384]
[1746558275842,31.95074403,145.06,145.05,6.89417442]
[1746558276341,31.95074403,145.06,145.03,6.89465276]
[1746558276545,31.95074403,145.04,145.03,6.89465276]
[1746558277554,31.95074403,145.06,145.03,24.13246562]
[1746558277864,31.95074403,145.05,145.03,24.13246562]
[1746558278764,31.95074403,145.06,145.03,24.13246562]
[1746558279345,63.42371151,145.09,145.03,56.08320965]
[1746558279559,31.95074403,145.07,145.03,56.08320965]
[1746558280749,31.95074403,145.07,145.03,24.13246562]
[1746558280949,31.95074403,145.06,145.03,24.13246562]
[1746558282259,31.95074403,145.05,145.03,24.13246562]
[1746558282444,63.42371151,145.09,145.03,24.13246562]
[1746558282643,31.95074403,145.05,145.03,24.13246562]
[1746558284051,31.95074403,145.06,145.03,24.13246562]
[1746558284554,63.42371151,145.08,145.03,24.13246562]
[1746558284759,31.95074403,145.06,145.03,24.13246562]
[1746558284957,31.95074403,145.05,145.03,6.89465276]
[1746558285964,171.24774403,145.11,145.03,6.89465276]
[1746558285965,31.95074403,145.04,145.03,6.89465276]
[1746558286563,63.42371151,145.07,145.03,6.89465276]
[1746558286866,31.95074403,145.04,145.03,6.89465276]
[1746558287049,31.95074403,145.04,145.01,43.23900474]
[1746558287050,31.95074403,145.04,145.02,6.8956006]
[1746558287643,31.95074403,145.06,145.02,24.13460211]
[1746558287861,31.95074403,145.06,145.02,56.08534614]
[1746558288063,31.95074403,145.06,145.02,24.13460211]
[1746558288265,31.95074403,145.04,145.02,6.8956006]
[1746558288458,31.95074403,145.03,145.02,6.8956006]
[1746558288771,31.95074403,145.03,145.0,6.89655172]
[1746558288947,31.95074403,145.01,144.98,6.8975031]
[1746558289148,31.95074403,145.0,144.98,6.8975031]
[1746558290964,31.95074403,144.99,144.98,6.8975031]
[1746558291362,31.95074403,145.0,144.98,24.14126085]
[1746558291750,1.6183,145.04,144.98,24.14126085]
[1746558292173,31.95074403,145.01,144.98,24.14126085]
[1746558292357,31.95074403,145.0,144.98,24.14126085]
[1746558293956,31.95074403,145.01,144.98,24.14126085]
[1746558294666,31.95074403,145.0,144.98,24.14126085]
[1746558294873,31.95074403,144.99,144.98,6.8975031]
[1746558295070,31.95074403,145.0,144.98,6.8975031]
[1746558296352,31.95074403,144.99,144.98,6.8975031]
[1746558297376,40.46372436,145.04,144.98,6.8975031]
[1746558297579,63.42371151,145.03,144.98,6.8975031]
[1746558298264,31.95074403,145.01,144.98,24.14126085]
[1746558298465,63.42371151,145.03,144.98,56.09200488]
[1746558298664,63.42371151,145.03,144.99,31.95074403]
[1746558298867,31.95074403,145.02,144.98,24.14126085]
[1746558299069,95.37445554,145.03,144.98,56.09200488]
[1746558299366,63.42371151,145.03,144.98,56.09200488]
[1746558299572,95.37445554,145.03,144.98,56.09200488]
[1746558300374,31.95074403,145.03,144.98,24.14126085]
[1746558300550,31.95074403,145.03,144.98,56.09200488]
[1746558300752,31.95074403,145.03,144.99,31.95074403]
[1746558301671,63.42371151,145.06,145.01,31.95074403]
[1746558301878,31.95074403,145.06,145.03,6.89512514]
[1746558302276,63.42371151,145.11,145.05,31.95074403]
[1746558302579,1.5228,145.13,145.04,57.95074403]
[1746558302761,31.95074403,145.12,145.07,31.95074403]
[1746558303160,31.95074403,145.11,145.07,31.95074403]
[1746558303354,31.95074403,145.11,145.06,31.95074403]
[1746558303656,31.95074403,145.12,145.07,31.95074403]
[1746558303870,19.985376,145.09,145.05,24.12961047]
[1746558304068,19.985376,145.11,145.07,19.985376]
[1746558305757,31.97830777,145.11,145.08,6.89274882]
[1746558308282,31.97830777,145.11,145.07,24.12563426]
[1746558308578,31.97830777,145.11,145.07,56.10394203]
[1746558308958,31.97830777,145.11,145.08,21.14]
[1746558309395,31.97830777,145.1,145.08,21.14]
[1746558309775,31.97830777,145.09,145.06,6.89358384]
[1746558310085,31.97830777,145.07,145.04,6.89464975]
[1746558310381,31.97830777,145.05,145.04,6.89464975]
[1746558311162,31.97830777,145.06,145.04,6.89464975]
[1746558313193,31.97830777,145.05,145.04,6.89464975]
[1746558313364,63.42371151,145.09,145.04,6.89464975]
[1746558313782,31.97830777,145.07,145.04,6.89464975]
[1746558314181,31.97830777,145.06,145.04,6.89464975]
[1746558315683,31.97830777,145.05,145.04,6.89464975]
[1746558315884,31.97830777,145.05,144.99,27.6592]
[1746558316184,31.97830777,145.02,145.0,20.86]
[1746558316689,31.97830777,145.02,145.0,6.89655172]
[1746558316986,31.97830777,145.02,145.0,27.73655172]
[1746558317286,31.97830777,145.01,145.0,6.89655172]
[1746558317869,31.97830777,145.01,144.99,6.89702738]
[1746558318179,31.97830777,145.0,144.99,6.89702738]
[1746558319596,31.97830777,145.0,144.98,6.8975031]
[1746558319997,31.97830777,145.01,144.98,24.14126085]
[1746558320373,31.97830777,145.04,144.98,24.14126085]
[1746558320694,31.97830777,145.0,144.98,6.8975031]
[1746558320900,31.97830777,144.99,144.98,6.8975031]
[1746558321598,31.97830777,144.99,144.96,37.96611987]
[1746558321599,31.97830777,144.99,144.97,6.89797889]
[1746558323711,31.97830777,145.0,144.97,6.89797889]
[1746558323919,31.97830777,144.99,144.97,6.89797889]
[1746558325118,31.97830777,144.98,144.97,6.89797889]
[1746558325917,31.97830777,144.99,144.97,6.89797889]
[1746558326416,31.97830777,144.98,144.95,6.89893066]
[1746558326599,31.97830777,144.96,144.94,6.89922794]
[1746558326795,31.97830777,144.95,144.94,6.89922794]
[1746558326998,31.97830777,144.95,144.93,27.7596732]
[1746558327213,6.89754691,144.98,144.93,27.7596732]
[1746558327214,31.97830777,144.94,144.93,6.8996732]
[1746558327802,20.03544155,144.94,144.93,6.8996732]
[1746558328102,20.03544155,144.94,144.92,6.90017467]
[1746558328319,20.03544155,144.93,144.92,6.90017467]
[1746558329720,32.05928494,144.93,144.92,6.90017467]
[1746558331309,32.05928494,144.93,144.91,6.900835]
[1746558333102,32.05928494,144.92,144.91,6.900835]
[1746558333302,32.05928494,144.92,144.89,24.15621791]
[1746558333503,32.05928494,144.91,144.89,44.45621791]
[1746558335433,63.42371151,144.95,144.89,76.51550285]
[1746558335735,32.05928494,144.93,144.89,76.51550285]
[1746558336536,32.05928494,144.93,144.89,44.45621791]
[1746558336706,32.05928494,144.93,144.89,56.21550285]
[1746558336907,32.05928494,144.93,144.9,20.24]
[1746558337202,32.05928494,144.92,144.9,20.24]
[1746558337920,32.05928494,144.91,144.9,20.24]
[1746558338123,32.05928494,144.91,144.89,6.90178756]
[1746558338313,32.05928494,144.9,144.89,6.90178756]
[1746558338739,32.05928494,144.91,144.89,6.90178756]
[1746558339598,32.05928494,144.91,144.87,24.15842264]
[1746558340332,32.05928494,144.91,144.87,56.21770758]
[1746558341040,32.05928494,144.91,144.87,24.15842264]
[1746558341630,32.05928494,144.91,144.87,56.21770758]
[1746558341841,32.05928494,144.92,144.88,32.05928494]
[1746558342410,32.05928494,144.92,144.87,56.21770758]
[1746558342630,63.42371151,144.94,144.88,32.05928494]
[1746558342829,32.05928494,144.92,144.88,32.05928494]
[1746558343019,32.05928494,144.92,144.87,24.15842264]
[1746558343219,32.05928494,144.92,144.87,56.21770758]
[1746558343630,32.05928494,144.92,144.87,24.15842264]
[1746558343829,63.42371151,144.94,144.88,32.05928494]
[1746558344012,32.05928494,144.9,144.88,20.12]
[1746558345836,32.05928494,144.9,144.89,6.90178756]
[1746558347032,32.05928494,144.9,144.82,25.67174421]
[1746558347033,90.11856988,144.9,144.82,25.67174421]
[1746558347214,32.05928494,144.86,144.82,25.67174421]
[1746558347415,32.05928494,144.86,144.82,57.73102915]
[1746558348537,32.05928494,144.86,144.82,25.67174421]
[1746558348715,32.05928494,144.86,144.82,57.73102915]
[1746558349736,20.05536734,144.86,144.82,45.72711155]
[1746558350532,20.05536734,144.86,144.82,25.67174421]
[1746558350721,20.05536734,144.86,144.82,45.72711155]
[1746558352036,46.05536734,144.9,144.82,45.72711155]
[1746558352337,20.05536734,144.86,144.82,45.72711155]
[1746558355645,20.05536734,144.87,144.82,80.25272955]
[1746558355828,63.42371151,144.9,144.83,38.7050162]
[1746558356022,20.05536734,144.88,144.84,20.05536734]
[1746558357133,20.05536734,144.88,144.83,44.64964886]
[1746558357335,20.05536734,144.88,144.84,24.1645954]
[1746558358322,20.05536734,144.85,144.82,6.90510863]
[1746558358662,20.05536734,144.83,144.82,6.90510863]
[1746558358842,20.05536734,144.84,144.82,6.90510863]
[1746558359026,1.5921,144.88,144.82,6.90510863]
[1746558359225,20.05536734,144.84,144.81,18.64964886]
[1746558360460,20.05536734,144.83,144.8,24.17013689]
[1746558360627,20.05536734,144.82,144.8,6.90607734]
[1746558361929,20.05536734,144.81,144.8,6.90607734]
[1746558362542,6.90343097,144.86,144.8,6.90607734]
[1746558362736,20.05536734,144.81,144.79,6.90638862]
[1746558362959,20.05536734,144.8,144.79,6.90638862]
[1746558363133,20.05536734,144.8,144.77,46.46]
[1746558363134,20.05536734,144.8,144.77,20.46]
[1746558363333,20.05536734,144.79,144.77,27.36729725]
[1746558364339,20.05536734,144.81,144.77,27.36729725]
[1746558364656,20.05536734,144.81,144.77,44.6360684]
[1746558364845,63.42371151,144.82,144.77,44.6360684]
[1746558365159,20.05536734,144.8,144.77,44.6360684]
[1746558365671,63.42371151,144.82,144.78,18.64964886]
[1746558365839,20.05536734,144.81,144.78,18.64964886]
[1746558366156,63.42371151,144.82,144.78,18.64964886]
[1746558366362,20.05536734,144.81,144.78,18.64964886]
[1746558366667,63.42371151,144.82,144.78,18.64964886]
[1746558366833,20.05536734,144.81,144.78,18.64964886]
[1746558367166,83.47907885,144.82,144.78,18.64964886]
[1746558367364,63.42371151,144.82,144.78,38.7050162]
[1746558367536,20.05536734,144.83,144.8,24.17127071]
[1746558368772,20.05536734,144.82,144.8,24.17127071]
[1746558368948,63.42371151,144.86,144.8,24.17127071]
[1746558369149,63.42371151,144.86,144.8,44.22663805]
[1746558369352,20.05536734,144.84,144.8,44.22663805]
[1746558369552,63.42371151,144.86,144.81,18.64964886]
[1746558369758,20.05536734,144.85,144.82,19.48]
[1746558370270,1.5921,144.88,144.83,20.05536734]
[1746558370458,20.05536734,144.86,144.83,18.64964886]
[1746558371893,20.05536734,144.86,144.84,6.90417011]
[1746558372055,20.05536734,144.88,144.84,26.95953745]
[1746558372259,63.42371151,144.89,144.84,44.21996274]
[1746558372549,20.05536734,144.88,144.84,44.21996274]
[1746558372954,63.42371151,144.89,144.84,44.21996274]
[1746558373152,20.05536734,144.88,144.84,44.21996274]
[1746558373537,20.05536734,144.88,144.84,24.1645954]
[1746558374462,20.05536734,144.88,144.84,44.21996274]
[1746558375059,110.72721151,144.92,144.85,38.7050162]
[1746558375263,64.98721151,144.92,144.86,20.05536734]
[1746558375567,20.05536734,144.91,144.86,20.05536734]
[1746558375746,21.61886734,144.92,144.87,38.7050162]
[1746558375947,20.05536734,144.91,144.88,19.34]
[1746558376183,20.05536734,144.91,144.89,6.90178756]
[1746558377546,63.42371151,144.94,144.88,26.24209285]
[1746558377547,20.05536734,144.9,144.88,26.24209285]
[1746558377747,20.05536734,144.89,144.88,6.90209285]
[1746558378171,20.05536734,144.89,144.86,6.90321689]
[1746558378479,20.05536734,144.87,144.86,6.90321689]
[1746558378687,20.05536734,144.9,144.86,6.90321689]
[1746558378851,20.05536734,144.87,144.86,6.90321689]
[1746558379047,20.05536734,144.87,144.85,26.20354247]
[1746558379267,20.05536734,144.86,144.85,26.20354247]
[1746558379855,32.0970165,144.86,144.82,19.32]
[1746558380078,32.0970165,144.84,144.82,19.32]
[1746558380277,32.0970165,144.85,144.83,6.90464682]
[1746558380585,32.0970165,144.86,144.83,6.90464682]
[1746558380757,32.0970165,144.85,144.83,6.90464682]
[1746558382076,63.42371151,144.88,144.83,24.16626388]
[1746558382251,32.0970165,144.87,144.83,24.16626388]
[1746558382456,32.0970165,144.86,144.83,24.16626388]
[1746558382768,32.0970165,144.84,144.83,6.90464682]
[1746558382948,89.42371151,144.88,144.83,6.90464682]
[1746558383152,32.0970165,144.85,144.83,6.90464682]
[1746558383488,32.0970165,144.86,144.83,6.90464682]
[1746558383683,32.0970165,144.88,144.84,50.74666536]
[1746558384260,32.0970165,144.88,144.85,24.16292716]
[1746558384456,32.0970165,144.89,144.86,19.22]
[1746558384663,69.74551151,144.91,144.86,19.22]
[1746558384977,63.42371151,144.91,144.86,19.22]
[1746558385177,32.0970165,144.89,144.86,19.22]
[1746558385874,32.0970165,144.92,144.87,32.0970165]
[1746558386079,32.0970165,144.91,144.86,51.3170165]
[1746558386388,1.5607,144.93,144.87,6.90274038]
[1746558386564,32.0970165,144.91,144.87,6.90274038]
[1746558386759,32.0970165,144.91,144.87,24.15959134]
[1746558387304,0.5607,144.93,144.87,82.25660784]
[1746558387479,32.0970165,144.93,144.88,50.74666536]
[1746558387677,32.0970165,144.92,144.88,18.64964886]
[1746558388069,63.42371151,144.94,144.88,18.64964886]
[1746558388269,32.0970165,144.92,144.88,18.64964886]
[1746558388597,63.42371151,144.94,144.89,56.25327296]
[1746558388800,32.0970165,144.93,144.89,24.15625646]
[1746558388979,32.0970165,144.93,144.89,56.25327296]
[1746558389291,32.0970165,144.93,144.89,24.15625646]
[1746558390375,32.0970165,144.94,144.9,32.0970165]
[1746558390580,32.0970165,144.95,144.91,24.1529225]
[1746558390770,32.0970165,144.94,144.92,19.1]
[1746558391467,32.0970165,144.93,144.92,19.1]
[1746558392177,26.0,144.97,144.92,19.1]
[1746558392388,26.0,144.97,144.92,51.1970165]
[1746558392389,32.0970165,144.96,144.92,51.1970165]
[1746558392573,58.0970165,144.97,144.93,6.8998827]
[1746558392773,32.0970165,144.97,144.93,38.9968992]
[1746558393395,32.0970165,144.96,144.93,6.8998827]
[1746558393690,32.0970165,144.95,144.93,6.8998827]
[1746558393894,32.0970165,144.94,144.89,26.29144886]
[1746558394068,32.0970165,144.93,144.9,25.90131124]
[1746558394580,32.0970165,144.92,144.9,25.90131124]
[1746558395099,32.0970165,144.91,144.9,25.90131124]
[1746558395682,32.0970165,144.91,144.9,19.0]
[1746558395875,32.0970165,144.91,144.9,25.90131124]
[1746558396388,32.0970165,144.91,144.9,19.0]
[1746558396577,32.0970165,144.91,144.87,43.11855476]
[1746558396779,32.0970165,144.89,144.87,43.11855476]
[1746558398120,32.0970165,144.89,144.87,17.25581438]
[1746558398399,32.0970165,144.88,144.86,6.90321689]
[1746558398892,32.0970165,144.89,144.86,24.16125913]
[1746558399869,32.0970165,144.88,144.86,24.16125913]
[1746558400177,32.0970165,144.88,144.86,17.25804224]
[1746558402192,6.0267,144.93,144.86,17.25804224]
[1746558402193,32.0970165,144.89,144.86,24.16125913]
[1746558402381,6.0267,144.93,144.86,24.16125913]
[1746558402382,32.0970165,144.88,144.86,24.16125913]
[1746558404294,32.0970165,144.89,144.86,17.25804224]
[1746558404493,32.0970165,144.88,144.86,17.25804224]
[1746558404792,32.0970165,144.89,144.86,17.25804224]
[1746558407083,32.0970165,144.91,144.86,49.35505874]
[1746558407279,32.0970165,144.91,144.87,32.0970165]
[1746558407493,32.0970165,144.88,144.85,6.90369347]
[1746558407677,32.0970165,144.9,144.85,6.90369347]
[1746558407678,32.0970165,144.86,144.85,6.90369347]
[1746558408894,32.0970165,144.86,144.84,6.90417011]
[1746558409808,32.0970165,144.85,144.84,6.90417011]
[1746558410488,32.0970165,144.85,144.81,6.90560044]
[1746558410689,32.0970165,144.85,144.82,19.94]
[1746558411002,32.0970165,144.85,144.83,6.90464682]
[1746558412803,63.42371151,144.88,144.83,6.90464682]
[1746558413006,32.0970165,144.85,144.83,6.90464682]
[1746558413704,32.0970165,144.84,144.83,6.90464682]
[1746558417907,20.05955983,144.85,144.83,6.90464682]
[1746558421702,63.42371151,144.87,144.83,6.90464682]
[1746558422109,20.05955983,144.87,144.83,44.22582371]
[1746558422402,20.05955983,144.88,144.84,20.05955983]
[1746558422612,63.42371151,144.9,144.84,20.05955983]
[1746558422613,20.05955983,144.9,144.85,38.70920869]
[1746558422791,20.05955983,144.91,144.86,20.05955983]
[1746558423102,63.42371151,144.92,144.87,18.64964886]
[1746558423407,20.05955983,144.92,144.88,39.63955983]
[1746558423979,63.42371151,144.94,144.89,44.21581629]
[1746558424212,83.48327134,144.94,144.9,20.05955983]
[1746558424507,20.05955983,144.94,144.89,44.21581629]
[1746558424695,63.42371151,144.96,144.9,20.05955983]
[1746558425005,20.05955983,144.95,144.9,20.05955983]
[1746558425208,20.05955983,144.95,144.91,20.05955983]
[1746558425706,32.04762229,144.95,144.91,50.69727115]
[1746558426011,32.04762229,144.96,144.92,24.15125585]
[1746558426206,32.04762229,144.95,144.92,24.15125585]
[1746558428612,32.04762229,144.93,144.92,6.90035881]
[1746558429295,32.04762229,144.93,144.91,19.46]
[1746558429493,32.04762229,144.92,144.91,19.46]
[1746558430103,32.04762229,144.92,144.91,26.36073141]
[1746558431313,65.02981151,144.95,144.91,26.36073141]
[1746558431606,63.42371151,144.94,144.91,26.36073141]
[1746558431796,95.4713338,144.94,144.91,26.36073141]
[1746558431998,32.04762229,144.93,144.91,26.36073141]
[1746558432193,32.04762229,144.93,144.91,43.61281891]
[1746558432498,32.04762229,144.92,144.91,26.36073141]
[1746558432699,63.42371151,144.96,144.91,26.36073141]
[1746558433011,63.42371151,144.96,144.91,75.6604412]
[1746558433196,95.4713338,144.96,144.91,75.6604412]
[1746558433523,95.4713338,144.96,144.92,32.04762229]
[1746558433988,32.04762229,144.96,144.92,32.04762229]
[1746558434189,32.04762229,144.96,144.93,24.14958945]
[1746558435811,32.04762229,144.96,144.93,6.8998827]
[1746558436109,32.04762229,144.94,144.91,26.220835]
[1746558436312,32.04762229,144.97,144.91,26.220835]
[1746558436313,32.04762229,144.92,144.91,26.220835]
[1746558436620,32.04762229,144.92,144.9,6.90108874]
[1746558436824,32.04762229,144.91,144.9,6.90108874]
[1746558437714,32.04762229,144.91,144.89,26.24157251]
[1746558440218,63.42371151,144.95,144.89,58.2891948]
[1746558440402,32.04762229,144.94,144.9,32.04762229]
[1746558440806,63.42371151,144.95,144.9,32.04762229]
[1746558441006,32.04762229,144.94,144.91,6.900835]
[1746558441611,32.04762229,144.96,144.91,56.20054479]
[1746558441916,32.04762229,144.95,144.91,56.20054479]
[1746558442126,32.04762229,144.95,144.91,24.1529225]
[1746558442617,32.04762229,144.93,144.91,24.1529225]
[1746558443523,32.04762229,144.93,144.91,6.900835]
[1746558444722,32.04762229,144.93,144.9,6.90131124]
[1746558445621,32.04762229,144.91,144.9,6.90131124]
[1746558447526,32.04762229,144.93,144.9,6.90131124]
[1746558448830,63.42371151,144.95,144.9,6.90131124]
[1746558449034,32.04762229,144.93,144.9,24.15458936]
[1746558449329,63.42371151,144.95,144.9,6.90131124]
[1746558449631,32.04762229,144.93,144.9,6.90131124]
[1746558451616,63.42371151,144.95,144.9,56.20221165]
[1746558451925,32.04762229,144.95,144.91,32.04762229]
[1746558452802,32.04762229,144.96,144.92,32.04762229]
[1746558453500,32.04762229,144.96,144.93,6.8998827]
[1746558453902,32.04762229,144.96,144.89,45.40216157]
[1746558453903,32.04762229,144.94,144.87,24.15959134]
[1746558454125,32.04762229,144.91,144.88,18.64964886]
[1746558454738,32.04762229,144.92,144.88,18.64964886]
[1746558455539,63.42371151,144.96,144.89,24.15625646]
[1746558455828,90.97701151,144.99,144.91,50.69727115]
[1746558456003,90.97701151,144.99,144.92,19.14]
[1746558456004,32.04762229,144.96,144.92,19.14]
[1746558456205,32.04762229,144.96,144.92,51.18762229]
[1746558457525,32.04762229,144.96,144.92,19.14]
[1746558457733,32.04762229,144.96,144.93,6.8998827]
[1746558458111,6.2971,145.0,144.93,56.19721174]
[1746558458322,32.04762229,144.98,144.93,56.19721174]
[1746558458630,63.42371151,145.02,144.96,32.04762229]
[1746558458829,32.04762229,145.01,144.96,32.04762229]
[1746558459139,32.04762229,145.0,144.96,32.04762229]
[1746558459516,32.04762229,145.0,144.95,32.04762229]
[1746558459719,32.04762229,145.0,144.96,6.89845474]
[1746558460223,32.04762229,145.0,144.96,24.1445916]
[1746558460432,63.42371151,145.02,144.96,56.19221389]
[1746558460731,32.04762229,145.01,144.96,56.19221389]
[1746558461638,63.42371151,145.02,144.98,32.04762229]
[1746558461957,32.04762229,145.02,144.99,6.89702738]
[1746558462719,32.04762229,145.01,144.99,6.89702738]
[1746558464444,32.04762229,145.03,144.99,56.18721812]
[1746558464617,26.0,145.05,144.99,56.18721812]
[1746558464816,32.04762229,145.03,144.99,56.18721812]
[1746558465046,64.97351151,145.06,144.99,56.18721812]
[1746558465233,32.04762229,145.03,144.99,56.18721812]
[1746558466849,32.04762229,145.01,144.99,6.89702738]
[1746558467154,32.04762229,145.0,144.98,25.87719073]
[1746558467328,32.04762229,144.99,144.98,25.87719073]
[1746558468029,32.04762229,144.99,144.98,18.98]
[1746558468349,32.04762229,144.99,144.98,25.8775031]
[1746558468522,32.04762229,145.0,144.98,25.8775031]
[1746558469645,32.04762229,145.01,144.98,25.8775031]
[1746558470343,63.42371151,145.03,144.98,25.8775031]
[1746558470549,32.04762229,145.01,144.98,25.8775031]
[1746558470929,32.04762229,145.0,144.98,25.8775031]
[1746558472658,32.04762229,144.99,144.98,25.8775031]
[1746558474344,32.04762229,144.99,144.98,6.8975031]
[1746558474859,32.04762229,144.99,144.97,6.89797889]
[1746558475555,32.04762229,144.98,144.97,6.89797889]
[1746558475746,32.04762229,144.98,144.96,26.21824701]
[1746558475932,32.04762229,144.97,144.96,6.89824701]
[1746558477468,63.42371151,145.01,144.96,6.89824701]
[1746558477635,32.04762229,144.98,144.96,6.89824701]
[1746558480370,32.04762229,144.97,144.96,6.89824701]
[1746558481582,32.04762229,144.97,144.95,6.89893066]
[1746558481754,20.02772167,144.97,144.95,6.89893066]
[1746558482983,63.42371151,145.0,144.95,6.89893066]
[1746558483155,20.02772167,144.97,144.95,6.89893066]
[1746558483358,20.02772167,144.98,144.95,6.89893066]
[1746558483670,20.02772167,144.98,144.95,24.14625732]
[1746558483863,20.02772167,144.99,144.95,44.17397899]
[1746558484257,83.45143318,145.0,144.95,44.17397899]
[1746558484880,20.02772167,144.99,144.95,24.14625732]
[1746558485072,20.02772167,144.98,144.95,24.14625732]
[1746558486455,20.02772167,144.98,144.95,43.12625732]
[1746558487083,13.52447677,145.03,144.95,63.15397899]
[1746558487084,20.02772167,144.99,144.95,63.15397899]
[1746558487274,63.42371151,145.02,144.96,20.02772167]
[1746558487469,20.02772167,145.0,144.96,20.02772167]
[1746558488468,63.42371151,145.02,144.96,20.02772167]
[1746558488666,20.02772167,145.0,144.96,20.02772167]
[1746558489183,63.42371151,145.02,144.97,24.14292612]
[1746558489386,63.42371151,145.04,144.98,20.02772167]
[1746558489592,20.02772167,145.02,144.98,20.02772167]
[1746558490093,20.02772167,145.01,144.97,44.17064779]
[1746558490260,20.02772167,145.02,144.98,20.02772167]
[1746558491287,20.02772167,145.02,144.99,6.89702738]
[1746558492679,20.02772167,145.02,144.99,24.13959583]
[1746558492858,20.02772167,145.03,144.99,24.13959583]
[1746558493765,20.02772167,145.01,144.99,24.13959583]
[1746558494166,20.02772167,145.01,144.99,6.89702738]
[1746558495194,20.02772167,145.0,144.98,6.8975031]
[1746558496079,20.02772167,145.01,144.98,6.8975031]
[1746558496378,20.02772167,145.01,144.98,25.8575031]
[1746558497590,63.42371151,145.04,144.98,25.8575031]
[1746558497776,20.02772167,145.01,144.98,25.8575031]
[1746558500197,20.02772167,145.01,144.98,43.10126085]
[1746558500382,20.02772167,145.02,144.98,43.10126085]
[1746558501704,63.42371151,145.04,144.98,63.12898252]
[1746558501996,83.45143318,145.04,144.99,20.02772167]
[1746558502994,83.45143318,145.04,145.0,20.02772167]
[1746558503165,20.02772167,145.06,145.01,20.02772167]
[1746558503399,89.42371151,145.09,145.03,20.02772167]
[1746558503704,89.42371151,145.09,145.05,6.89417442]
[1746558503705,20.02772167,145.07,145.05,6.89417442]
[1746558504322,20.02772167,145.08,145.05,24.12961047]
[1746558504816,20.02772167,145.07,145.05,6.89417442]
[1746558505002,20.02772167,145.06,145.05,6.89417442]
[1746558505918,63.42371151,145.09,145.05,6.89417442]
[1746558506119,20.02772167,145.06,145.05,6.89417442]
[1746558506623,20.02772167,145.07,145.05,6.89417442]
[1746558506826,20.02772167,145.08,145.05,24.12961047]
[1746558507038,83.45143318,145.09,145.05,24.12961047]
[1746558507229,89.42371151,145.11,145.05,24.12961047]
[1746558507535,83.45143318,145.11,145.06,20.02772167]
[1746558507737,63.42371151,145.11,145.06,20.02772167]
[1746558508043,83.45143318,145.11,145.07,24.12628386]
[1746558508341,63.42371151,145.11,145.07,24.12628386]
[1746558508535,63.42371151,145.11,145.07,44.15400553]
[1746558508746,83.45143318,145.11,145.07,44.15400553]
[1746558508936,20.02772167,145.1,145.07,24.12628386]
[1746558509333,63.42371151,145.11,145.07,44.15400553]
[1746558509736,83.45143318,145.11,145.07,44.15400553]
[1746558509934,20.02772167,145.1,145.07,24.12628386]
[1746558511144,83.45143318,145.11,145.07,44.15400553]
[1746558511850,83.45143318,145.11,145.07,24.12628386]
[1746558512349,63.42371151,145.14,145.08,38.67737053]